bitfinex/quotes_SOLUSD_20240718
["timestamp","ask_amount","ask_price","bid_price","bid_amount"]
[1721338565793,15.3731,158.19,158.16,32.29]
[1721338566093,15.3731,158.19,158.16,41.70416811]
[1721338566471,15.3731,158.19,158.16,32.29]
[1721338566896,15.3731,158.19,158.16,41.70416811]
[1721338568198,15.3731,158.19,158.16,32.29]
[1721338568365,15.3731,158.19,158.17,12.29]
[1721338573700,15.3731,158.19,158.16,41.70509674]
[1721338574901,15.3731,158.19,158.16,32.29]
[1721338575109,15.3731,158.19,158.16,41.70525918]
[1721338575606,15.3731,158.19,158.16,29.41525918]
[1721338575813,15.3731,158.19,158.16,41.70525918]
[1721338578212,15.9636,158.23,158.16,41.70525918]
[1721338578401,15.9636,158.23,158.17,12.29]
[1721338578577,15.9636,158.23,158.18,12.29]
[1721338578987,15.9636,158.23,158.19,4.72642604]
[1721338583106,28.2536,158.23,158.19,4.72642604]
[1721338591352,12.29,158.21,158.19,4.72642604]
[1721338591722,15.9636,158.23,158.19,4.72642604]
[1721338591923,12.29,158.21,158.19,4.72642604]
[1721338593248,12.29,158.22,158.19,4.72642604]
[1721338593642,12.29,158.21,158.19,4.72642604]
[1721338595324,15.9636,158.23,158.19,4.72642604]
[1721338595532,28.2536,158.23,158.19,4.72642604]
[1721338597758,12.29,158.22,158.19,4.72642604]
[1721338598055,28.2536,158.23,158.19,4.72642604]
[1721338598753,12.29,158.22,158.19,4.72642604]
[1721338598957,15.9636,158.23,158.19,4.72642604]
[1721338599137,28.2536,158.23,158.19,4.72642604]
[1721338601458,12.29,158.21,158.19,4.72642604]
[1721338602757,12.29,158.21,158.2,4.72642604]
[1721338603242,12.29,158.21,158.16,21.70816427]
[1721338603645,12.29,158.22,158.16,21.70816427]
[1721338604160,28.2536,158.23,158.17,21.70816427]
[1721338604453,15.9636,158.23,158.18,12.29]
[1721338605738,12.29,158.22,158.17,9.41806222]
[1721338606040,12.29,158.22,158.16,21.70806222]
[1721338606239,28.2536,158.23,158.17,21.70806222]
[1721338606538,28.2536,158.23,158.17,12.29]
[1721338606745,28.2536,158.23,158.16,21.70806222]
[1721338606950,28.2536,158.23,158.16,9.41806222]
[1721338607339,12.29,158.22,158.16,9.41806222]
[1721338610049,12.29,158.2,158.16,9.41806222]
[1721338610251,12.29,158.19,158.15,9.41806222]
[1721338610646,12.29,158.2,158.15,9.41806222]
[1721338611269,12.29,158.19,158.15,9.41806222]
[1721338611587,12.29,158.19,158.15,9.42908549]
[1721338612087,12.29,158.19,158.14,49.38112549]
[1721338612256,12.29,158.19,158.14,39.95204]
[1721338612459,12.29,158.19,158.14,49.38086993]
[1721338615085,12.29,158.19,158.14,49.38227581]
[1721338615460,12.29,158.16,158.14,49.38227581]
[1721338615779,12.29,158.15,158.14,39.95204]
[1721338630796,12.29,158.16,158.14,39.95204]
[1721338632982,16.1076,158.18,158.14,39.95204]
[1721338633190,12.29,158.18,158.14,39.95204]
[1721338633498,12.29,158.19,158.14,39.95204]
[1721338633705,12.29,158.18,158.14,39.95204]
[1721338634094,15.6996,158.21,158.14,39.95204]
[1721338634296,12.29,158.18,158.16,4.72732255]
[1721338635901,12.29,158.19,158.16,4.72732255]
[1721338636899,15.6996,158.21,158.16,4.72732255]
[1721338637101,12.29,158.19,158.16,4.72732255]
[1721338639310,12.29,158.17,158.16,4.72732255]
[1721338652249,15.6996,158.21,158.16,4.72732255]
[1721338652539,12.29,158.18,158.16,4.72732255]
[1721338655423,12.29,158.17,158.16,4.72732255]
[1721338663442,15.6996,158.21,158.17,4.72732255]
[1721338663852,12.29,158.18,158.17,4.72732255]
[1721338677564,12.29,158.19,158.17,4.72732255]
[1721338678439,12.29,158.18,158.17,4.72732255]
[1721338678841,12.29,158.19,158.17,4.72732255]
[1721338679434,12.29,158.18,158.17,4.72732255]
[1721338679841,57.29,158.18,158.17,4.72732255]
[1721338680762,12.29,158.18,158.17,4.72732255]
[1721338681339,57.29,158.18,158.17,4.72732255]
[1721338682772,45.0,158.18,158.17,4.72732255]
[1721338682974,57.29,158.18,158.17,4.72732255]
[1721338683180,45.0,158.18,158.17,4.72732255]
[1721338683363,57.29,158.18,158.17,4.72732255]
[1721338686376,12.29,158.18,158.17,4.72732255]
[1721338689842,15.6996,158.21,158.17,4.72732255]
[1721338690083,12.29,158.18,158.17,4.72732255]
[1721338691573,57.29,158.18,158.17,4.72732255]
[1721338693766,57.29,158.18,158.14,39.95204]
[1721338696382,12.29,158.15,158.14,39.95204]
[1721338698279,45.0,158.18,158.14,39.95204]
[1721338698466,12.29,158.15,158.14,39.95204]
[1721338701387,12.29,158.16,158.14,39.95204]
[1721338703084,45.0,158.18,158.14,39.95204]
[1721338703300,12.29,158.16,158.14,39.95204]
[1721338703586,22.0203,158.21,158.14,39.95204]
[1721338703791,12.29,158.16,158.14,39.95204]
[1721338704795,45.0,158.2,158.14,39.95204]
[1721338705097,12.29,158.16,158.14,39.95204]
[1721338709700,12.29,158.15,158.14,39.95204]
[1721338719001,57.29,158.15,158.14,39.95204]
[1721338724412,45.0,158.15,158.14,39.95204]
[1721338724715,57.29,158.15,158.14,39.95204]
[1721338728509,63.6131,158.15,158.14,39.95204]
[1721338729010,57.29,158.15,158.14,39.95204]
[1721338731243,45.0,158.15,158.14,39.95204]
[1721338731540,57.29,158.15,158.14,39.95204]
[1721338732838,63.6131,158.15,158.14,39.95204]
[1721338733213,57.29,158.15,158.14,39.95204]
[1721338733511,51.3231,158.15,158.14,39.95204]
[1721338733710,63.6131,158.15,158.14,39.95204]
[1721338734013,15.5624,158.2,158.14,39.95204]
[1721338734319,12.29,158.16,158.14,39.95204]
[1721338734932,6.3216,158.19,158.14,39.95204]
[1721338735244,12.29,158.16,158.14,39.95204]
[1721338736335,12.29,158.15,158.14,39.95204]
[1721338739119,6.3219,158.18,158.14,39.95204]
[1721338739315,12.29,158.17,158.14,39.95204]
[1721338739521,12.29,158.16,158.14,39.95204]
[1721338740046,12.29,158.15,158.14,39.95204]
[1721338742657,6.3216,158.19,158.14,39.95204]
[1721338742850,12.29,158.16,158.14,39.95204]
[1721338743150,12.29,158.16,158.15,4.72762147]
[1721338752956,12.29,158.16,158.14,39.95204]
[1721338764057,12.29,158.15,158.14,39.95204]
[1721338765389,57.29,158.15,158.14,39.95204]
[1721338776398,45.0,158.15,158.14,39.95204]
[1721338776580,57.29,158.15,158.14,39.95204]
[1721338780377,63.6131,158.15,158.14,39.95204]
[1721338780700,57.29,158.15,158.14,39.95204]
[1721338781574,63.6131,158.15,158.14,39.95204]
[1721338790301,51.3231,158.15,158.14,39.95204]
[1721338790597,63.6131,158.15,158.14,39.95204]
[1721338791306,51.3231,158.15,158.14,39.95204]
[1721338791506,64.9525293,158.15,158.14,39.95204]
[1721338793109,58.6294293,158.15,158.14,39.95204]
[1721338793288,46.3394293,158.15,158.14,39.95204]
[1721338793488,58.6294293,158.15,158.14,39.95204]
[1721338797809,46.3394293,158.15,158.14,39.95204]
[1721338797990,58.6294293,158.15,158.14,39.95204]
[1721338798306,46.3394293,158.15,158.14,39.95204]
[1721338798513,58.6294293,158.15,158.14,39.95204]
[1721338798930,46.3394293,158.15,158.14,39.95204]
[1721338799228,58.6294293,158.15,158.14,39.95204]
[1721338800324,15.0947,158.2,158.14,39.95204]
[1721338800526,12.29,158.16,158.14,39.95204]
[1721338800718,6.3212,158.2,158.14,39.95204]
[1721338801028,12.29,158.15,158.14,39.95204]
[1721338802008,6.3215,158.19,158.14,39.95204]
[1721338802308,12.29,158.15,158.14,39.95204]
[1721338826122,12.29,158.16,158.14,39.95204]
[1721338828957,12.29,158.15,158.14,39.95204]
[1721338839339,12.29,158.16,158.14,39.95204]
[1721338839757,12.29,158.15,158.14,39.95204]
[1721338845452,6.3212,158.2,158.14,39.95204]
[1721338845844,12.29,158.17,158.14,39.95204]
[1721338846366,6.3212,158.2,158.14,39.95204]
[1721338846558,12.29,158.17,158.15,4.72601144]
[1721338864864,12.29,158.16,158.15,4.72601144]
[1721338870674,12.29,158.17,158.15,4.72601144]
[1721338870860,12.29,158.17,158.15,5.99047366]
[1721338871963,12.29,158.18,158.15,5.99047366]
[1721338872691,12.29,158.18,158.15,4.72601144]
[1721338872868,6.3216,158.19,158.17,4.72601144]
[1721338873184,12.29,158.18,158.17,4.72601144]
[1721338873686,12.29,158.18,158.15,1.2644554]
[1721338874287,12.29,158.18,158.14,39.95204]
[1721338874906,12.29,158.18,158.15,1.26445434]
[1721338876492,12.29,158.17,158.15,1.26445434]
[1721338876687,12.29,158.17,158.14,39.95204]
[1721338876688,12.29,158.16,158.14,39.95204]
[1721338878403,12.29,158.17,158.14,39.95204]
[1721338895420,12.29,158.18,158.14,39.95204]
[1721338901002,6.3216,158.19,158.14,39.95204]
[1721338901619,12.29,158.18,158.14,39.95204]
[1721338902223,12.29,158.17,158.14,39.95204]
[1721338902725,12.29,158.16,158.14,39.95204]
[1721338903220,12.29,158.17,158.14,39.95204]
[1721338905633,6.321,158.21,158.14,39.95204]
[1721338905803,12.29,158.17,158.16,4.72571263]
[1721338912741,6.3215,158.19,158.16,4.72571263]
[1721338912924,12.29,158.17,158.16,4.72571263]
[1721338921861,12.29,158.18,158.16,4.72571263]
[1721338925261,12.29,158.17,158.16,4.72571263]
[1721338931954,12.29,158.18,158.16,4.72571263]
[1721338932854,12.29,158.18,158.17,4.72571263]
[1721338933059,12.29,158.18,158.14,39.95204]
[1721338943648,12.29,158.16,158.14,39.95204]
[1721338944147,12.29,158.15,158.14,39.95204]
[1721338945373,12.29,158.16,158.14,39.95204]
[1721338946580,12.29,158.17,158.14,39.95204]
[1721338946762,12.29,158.16,158.14,39.95204]
[1721338947273,12.29,158.17,158.14,39.95204]
[1721338951475,12.29,158.18,158.14,39.95204]
[1721338956577,18.6119,158.18,158.14,39.95204]
[1721338962667,12.29,158.18,158.14,39.95204]
[1721338962897,18.6119,158.18,158.14,39.95204]
[1721338964483,12.29,158.18,158.14,39.95204]
[1721338968171,22.40539227,158.22,158.14,39.95204]
[1721338968172,6.3228,158.16,158.14,39.95204]
[1721338968372,12.29,158.15,158.14,39.95204]
[1721338969387,6.3228,158.16,158.14,39.95204]
[1721338969601,12.29,158.15,158.14,39.95204]
[1721338971888,12.29,158.16,158.14,39.95204]
[1721338974205,12.29,158.17,158.14,39.95204]
[1721338974500,12.29,158.16,158.14,39.95204]
[1721338974701,12.29,158.17,158.14,39.95204]
[1721338976593,12.29,158.18,158.14,39.95204]
[1721338977405,12.29,158.17,158.14,39.95204]
[1721338978412,12.29,158.18,158.14,39.95204]
[1721338978914,12.29,158.16,158.14,39.95204]
[1721338979508,12.29,158.17,158.14,39.95204]
[1721338997725,6.3216,158.19,158.14,39.95204]
[1721338997936,12.29,158.17,158.14,39.95204]
[1721338998831,6.3216,158.19,158.14,39.95204]
[1721338999035,12.29,158.17,158.14,39.95204]
[1721339000531,12.29,158.18,158.14,39.95204]
[1721339003440,12.29,158.17,158.14,39.95204]
[1721339004532,6.3215,158.19,158.14,39.95204]
[1721339004742,12.29,158.17,158.14,39.95204]
[1721339010438,12.29,158.18,158.14,39.95204]
[1721339011635,12.29,158.17,158.14,39.95204]
[1721339011814,12.29,158.18,158.14,39.95204]
[1721339021643,6.3224,158.17,158.14,39.95204]
[1721339021823,12.29,158.17,158.14,39.95204]
[1721339022620,12.29,158.16,158.14,39.95204]
[1721339027442,12.29,158.17,158.14,39.95204]
[1721339027763,6.3224,158.17,158.14,39.95204]
[1721339027950,12.29,158.16,158.14,39.95204]
[1721339030761,6.323,158.16,158.14,39.95204]
[1721339030940,12.29,158.15,158.14,39.95204]
[1721339031545,18.6131,158.15,158.14,39.95204]
[1721339032771,12.29,158.15,158.14,39.95204]
[1721339040556,6.3224,158.17,158.14,39.95204]
[1721339040757,12.29,158.15,158.14,39.95204]
[1721339041257,18.6131,158.15,158.14,39.95204]
[1721339041482,63.6131,158.15,158.14,39.95204]
[1721339041663,57.29,158.15,158.14,39.95204]
[1721339046670,12.29,158.15,158.14,39.95204]
[1721339048873,18.6131,158.15,158.14,39.95204]
[1721339049409,63.6131,158.15,158.14,39.95204]
[1721339054407,57.29,158.15,158.14,39.95204]
[1721339054604,45.0,158.15,158.14,39.95204]
[1721339054808,57.29,158.15,158.14,39.95204]
[1721339056034,45.0,158.15,158.14,39.95204]
[1721339056244,57.29,158.15,158.14,39.95204]
[1721339056704,45.0,158.15,158.14,39.95204]
[1721339056910,57.29,158.15,158.14,39.95204]
[1721339058693,45.0,158.15,158.14,39.95204]
[1721339058900,57.29,158.15,158.14,39.95204]
[1721339059089,45.0,158.15,158.14,39.95204]
[1721339059291,57.29,158.15,158.14,39.95204]
[1721339060508,63.6131,158.15,158.14,39.95204]
[1721339061998,57.29,158.15,158.14,39.95204]
[1721339062226,63.6131,158.15,158.14,39.95204]
[1721339062927,51.3231,158.15,158.14,39.95204]
[1721339063114,63.6131,158.15,158.14,39.95204]
[1721339063836,18.6131,158.15,158.14,39.95204]
[1721339065233,12.29,158.15,158.14,39.95204]
[1721339066022,18.6131,158.15,158.14,39.95204]
[1721339066230,64.9525293,158.15,158.14,39.95204]
[1721339066727,52.6625293,158.15,158.14,39.95204]
[1721339066925,64.9525293,158.15,158.14,39.95204]
[1721339067227,7.6625293,158.15,158.14,39.95204]
[1721339067415,19.9525293,158.15,158.14,39.95204]
[1721339070133,13.6294293,158.15,158.14,39.95204]
[1721339070432,19.9525293,158.15,158.14,39.95204]
[1721339080710,7.6625293,158.15,158.14,39.95204]
[1721339080909,13.6294293,158.15,158.14,39.95204]
[1721339083941,19.9525293,158.15,158.14,39.95204]
[1721339087241,7.6625293,158.15,158.14,39.95204]
[1721339087451,19.9525293,158.15,158.14,39.95204]
[1721339096230,13.6294293,158.15,158.14,39.95204]
[1721339097739,6.3228,158.16,158.14,39.95204]
[1721339097926,12.29,158.15,158.14,39.95204]
[1721339098127,6.3228,158.16,158.14,39.95204]
[1721339098338,12.29,158.15,158.14,39.95204]
[1721339104659,6.3228,158.16,158.14,39.95204]
[1721339104862,18.6131,158.15,158.14,39.95204]
[1721339146515,18.6131,158.15,158.14,39.92441515]
[1721339148740,23.19088347,158.2,158.14,39.92441515]
[1721339149029,12.29,158.18,158.14,55.01421515]
[1721339149241,12.29,158.16,158.14,55.01421515]
[1721339152021,71.54655061,158.24,158.14,55.01421515]
[1721339152221,12.29,158.16,158.14,55.01421515]
[1721339152417,12.29,158.17,158.14,55.01421515]
[1721339154346,6.3208,158.21,158.14,55.01421515]
[1721339154551,12.29,158.18,158.14,55.01421515]
[1721339155639,12.29,158.17,158.14,55.01421515]
[1721339156745,12.29,158.18,158.14,55.01421515]
[1721339157127,6.3208,158.21,158.14,55.01421515]
[1721339157323,12.29,158.18,158.14,55.01421515]
[1721339162554,12.29,158.18,158.15,1.26430268]
[1721339163448,12.29,158.18,158.14,55.01421515]
[1721339165146,6.3211,158.2,158.14,55.01421515]
[1721339165346,12.29,158.18,158.14,55.01421515]
[1721339166372,6.3211,158.2,158.14,55.01421515]
[1721339166559,12.29,158.17,158.14,55.01421515]
[1721339169373,12.29,158.17,158.14,39.92441515]
[1721339169869,6.3211,158.2,158.14,39.92441515]
[1721339170054,12.29,158.17,158.14,39.92441515]
[1721339172955,0.95545529,158.15,158.14,39.92441515]
[1721339178447,0.95545529,158.15,158.14,41.18872003]
[1721339179977,0.95545529,158.15,158.14,39.92441515]
[1721339183856,0.95545529,158.15,158.14,84.92441515]
[1721339185863,0.95545529,158.15,158.14,97.21441515]
[1721339186862,0.95545529,158.15,158.14,84.92441515]
[1721339187189,0.95545529,158.15,158.14,97.21441515]
[1721339189784,0.95545529,158.15,158.14,116.22441515]
[1721339192982,0.95545529,158.15,158.14,117.48850694]
[1721339193886,0.95545529,158.15,158.14,116.22441515]
[1721339196790,0.95545529,158.15,158.14,116.56441515]
[1721339203491,0.95545529,158.15,158.14,104.27441515]
[1721339203670,0.95545529,158.15,158.14,116.56441515]
[1721339204676,0.95545529,158.15,158.14,104.27441515]
[1721339204991,0.95545529,158.15,158.14,116.56441515]
[1721339205190,0.95545529,158.15,158.14,104.27441515]
[1721339205496,0.95545529,158.15,158.14,116.56441515]
[1721339205696,0.95545529,158.15,158.14,117.82845702]
[1721339206495,0.95545529,158.15,158.14,116.56441515]
[1721339206699,0.95545529,158.15,158.14,104.27441515]
[1721339206896,0.95545529,158.15,158.14,116.56441515]
[1721339207695,0.95545529,158.15,158.14,103.93441515]
[1721339207995,0.95545529,158.15,158.14,116.22441515]
[1721339210501,0.95545529,158.15,158.14,117.65848066]
[1721339212693,0.95545529,158.15,158.14,116.22441515]
[1721339212888,0.95545529,158.15,158.14,125.69946185]
[1721339214606,0.95545529,158.15,158.14,126.96352726]
[1721339214803,0.95545529,158.15,158.14,127.13352726]
[1721339215007,0.95545529,158.15,158.14,127.13087919]
[1721339216202,0.95545529,158.15,158.14,127.13080337]
[1721339217404,0.95545529,158.15,158.14,117.65840474]
[1721339218387,0.95545529,158.15,158.14,127.13201739]
[1721339218700,0.95545529,158.15,158.14,117.65840474]
[1721339218899,0.95545529,158.15,158.14,116.39441515]
[1721339219403,0.95545529,158.15,158.14,117.65841292]
[1721339219610,0.95545529,158.15,158.14,117.82841292]
[1721339220800,0.95545529,158.15,158.14,116.39441515]
[1721339221003,0.95545529,158.15,158.14,125.8680278]
[1721339221303,0.95545529,158.15,158.14,116.39441515]
[1721339224306,0.95545529,158.15,158.14,71.22441515]
[1721339225711,0.95545529,158.15,158.14,116.22441515]
[1721339228496,0.95545529,158.15,158.14,125.6950173]
[1721339229196,0.95545529,158.15,158.14,125.8650173]
[1721339230314,0.95545529,158.15,158.14,126.17054909]
[1721339231515,0.95545529,158.15,158.14,116.69994694]
[1721339231692,0.95545529,158.15,158.14,126.16716096]
[1721339232418,0.95545529,158.15,158.14,127.43123681]
[1721339232602,0.95545529,158.15,158.14,127.42834177]
[1721339232916,0.95545529,158.15,158.14,126.16426592]
[1721339236417,0.95545529,158.15,158.14,127.42833885]
[1721339237806,0.95545529,158.15,158.14,147.42833885]
[1721339238319,0.95545529,158.15,158.14,147.43085643]
[1721339239599,0.95545529,158.15,158.14,147.60085643]
[1721339240812,0.95545529,158.15,158.14,138.13401987]
[1721339276831,0.95545529,158.15,158.14,125.84401987]
[1721339277021,0.95545529,158.15,158.14,138.13394515]
[1721339278441,0.95545529,158.15,158.14,125.84394515]
[1721339278641,0.95545529,158.15,158.14,138.13394515]
[1721339282248,0.95545529,158.15,158.14,146.58497734]
[1721339282448,0.95545529,158.15,158.14,134.29497734]
[1721339282648,0.95545529,158.15,158.14,146.58497734]
[1721339288240,0.95545529,158.15,158.14,154.17985801]
[1721339288438,0.95545529,158.15,158.14,166.46985801]
[1721339288638,0.95545529,158.15,158.14,152.9158598]
[1721339290570,0.95545529,158.15,158.14,165.2058598]
[1721339291335,0.95545529,158.15,158.14,165.20494505]
[1721339291747,0.95545529,158.15,158.14,157.61097913]
[1721339292463,0.95545529,158.15,158.14,163.94597913]
[1721339292851,0.95545529,158.15,158.14,178.96087052]
[1721339293268,0.95545529,158.15,158.14,148.04587052]
[1721339293460,0.95545529,158.15,158.14,160.33587052]
[1721339294762,0.95545529,158.15,158.14,166.67002586]
[1721339295470,0.95545529,158.15,158.14,178.95602586]
[1721339296267,0.95545529,158.15,158.14,172.62502586]
[1721339296436,0.95545529,158.15,158.14,178.95602586]
[1721339296639,0.95545529,158.15,158.14,172.62502586]
[1721339299166,0.95545529,158.15,158.14,178.95602586]
[1721339308790,0.95545529,158.15,158.14,172.62502586]
[1721339308989,0.95545529,158.15,158.14,178.95602586]
[1721339313196,0.95545529,158.15,158.14,172.62502586]
[1721339313378,0.95545529,158.15,158.14,178.95602586]
[1721339315698,0.95545529,158.15,158.14,172.62502586]
[1721339315901,0.95545529,158.15,158.14,178.95602586]
[1721339318888,15.6597,158.25,158.19,0.30553179]
[1721339319195,15.6597,158.25,158.21,12.29]
[1721339319692,15.6597,158.25,158.22,1.26375573]
[1721339321198,15.6597,158.25,158.21,12.29]
[1721339321991,15.6597,158.25,158.22,1.2637569]
[1721339323387,15.6597,158.25,158.22,45.0]
[1721339323701,15.6597,158.25,158.23,1.26371408]
[1721339324495,15.6597,158.25,158.22,57.29]
[1721339324808,15.6597,158.25,158.23,1.26371466]
[1721339330225,15.6597,158.25,158.22,57.29]
[1721339330925,15.9096,158.29,158.24,12.29]
[1721339331220,15.9096,158.29,158.26,12.29]
[1721339334498,15.9096,158.29,158.27,45.0]
[1721339338427,15.9096,158.29,158.27,57.29]
[1721339342038,15.9096,158.29,158.28,12.29]
[1721339342617,15.9096,158.29,158.27,57.29]
[1721339344044,12.29,158.33,158.27,57.29]
[1721339344045,28.0805,158.33,158.27,57.29]
[1721339347463,15.7905,158.33,158.28,12.29]
[1721339350460,15.7905,158.33,158.3,12.29]
[1721339350857,12.29,158.36,158.31,1.26304357]
[1721339351035,12.29,158.36,158.31,13.55304357]
[1721339351564,27.6693,158.37,158.31,13.55304357]
[1721339351866,27.6693,158.37,158.31,12.29]
[1721339352067,27.6693,158.37,158.32,1.26294328]
[1721339352246,27.6693,158.37,158.33,1.26294444]
[1721339353353,27.6693,158.37,158.32,1.262945]
[1721339353661,27.6693,158.37,158.33,1.26294464]
[1721339355471,27.6693,158.37,158.31,12.29]
[1721339357554,12.29,158.36,158.31,12.29]
[1721339358470,15.3793,158.37,158.32,57.29]
[1721339358672,27.6693,158.37,158.32,57.29]
[1721339360260,12.29,158.38,158.32,57.29]
[1721339361155,12.29,158.38,158.32,45.0]
[1721339361353,12.29,158.38,158.32,12.29]
[1721339361549,12.29,158.38,158.33,45.0]
[1721339362767,0.8106226,158.39,158.33,57.29]
[1721339362957,12.29,158.38,158.33,57.29]
[1721339366390,12.29,158.36,158.3,12.29]
[1721339366681,12.29,158.36,158.31,20.0]
[1721339370989,0.8106226,158.39,158.31,20.0]
[1721339371291,12.29,158.36,158.31,20.0]
[1721339371484,12.29,158.37,158.31,32.29]
[1721339372568,12.29,158.36,158.31,32.29]
[1721339374507,12.29,158.37,158.31,32.29]
[1721339377406,0.8106226,158.39,158.31,32.29]
[1721339377610,12.29,158.37,158.31,32.29]
[1721339377806,0.8106226,158.39,158.31,32.29]
[1721339378104,12.29,158.37,158.31,32.29]
[1721339379912,12.29,158.38,158.32,12.29]
[1721339383404,0.8106226,158.39,158.33,12.29]
[1721339383611,13.1006226,158.39,158.33,12.29]
[1721339384091,0.8106226,158.39,158.32,12.29]
[1721339384290,12.29,158.38,158.32,12.29]
[1721339385813,0.8106226,158.39,158.32,12.29]
[1721339386117,12.29,158.38,158.32,12.29]
[1721339399425,12.29,158.38,158.31,20.0]
[1721339399651,12.29,158.38,158.32,12.29]
[1721339399939,12.29,158.37,158.32,12.29]
[1721339402030,12.29,158.38,158.33,45.0]
[1721339402639,13.1006226,158.39,158.33,57.29]
[1721339403532,13.1006226,158.39,158.34,12.29]
[1721339407442,0.8106226,158.39,158.34,12.29]
[1721339411553,13.1006226,158.39,158.34,12.29]
[1721339412434,0.8106226,158.39,158.34,12.29]
[1721339417450,0.8106226,158.39,158.37,12.29]
[1721339418059,0.8106226,158.39,158.36,12.29]
[1721339421061,0.8106226,158.39,158.35,12.29]
[1721339421557,0.8106226,158.39,158.35,13.55273924]
[1721339422062,0.8106226,158.39,158.36,1.26273979]
[1721339423941,0.8106226,158.39,158.35,12.29]
[1721339428062,0.8106226,158.39,158.35,13.55274807]
[1721339429249,0.8106226,158.39,158.35,12.29]
[1721339433039,0.8106226,158.39,158.34,6.0512]
[1721339433245,0.8106226,158.39,158.35,12.29]
[1721339433451,0.8106226,158.39,158.36,13.55269167]
[1721339433641,0.8106226,158.39,158.36,13.55262216]
[1721339435165,0.8106226,158.39,158.37,12.29]
[1721339436043,0.8106226,158.39,158.38,45.0]
[1721339437171,0.8106226,158.39,158.38,46.26250717]
[1721339437667,0.8106226,158.39,158.38,58.55250717]
[1721339438050,0.8106226,158.39,158.38,57.29]
[1721339439362,0.8106226,158.39,158.38,78.87353179]
[1721339439563,12.29,158.49,158.41,0.30553179]
[1721339439745,12.29,158.49,158.44,12.29]
[1721339439951,12.29,158.49,158.45,1.26205077]
[1721339440264,12.29,158.49,158.44,12.29]
[1721339440265,15.1833,158.52,158.44,12.29]
[1721339440466,15.1833,158.52,158.45,57.29]
[1721339440764,12.29,158.51,158.45,57.29]
[1721339441149,15.1833,158.52,158.45,57.29]
[1721339441345,12.29,158.51,158.45,57.29]
[1721339441843,15.1833,158.52,158.45,45.0]
[1721339442048,27.4733,158.52,158.46,12.29]
[1721339442250,27.4733,158.52,158.47,45.0]
[1721339442961,12.29,158.52,158.47,45.0]
[1721339443260,7.1177226,158.55,158.49,12.29]
[1721339443261,0.8106226,158.55,158.49,12.29]
[1721339443459,12.29,158.54,158.49,12.29]
[1721339444576,12.29,158.54,158.48,12.29]
[1721339444769,12.29,158.54,158.49,45.0]
[1721339445152,12.29,158.54,158.49,57.29]
[1721339445347,13.1006226,158.55,158.49,57.29]
[1721339447274,0.8106226,158.55,158.49,57.29]
[1721339447487,13.1006226,158.55,158.49,57.29]
[1721339448370,12.29,158.54,158.49,57.29]
[1721339448956,12.29,158.53,158.49,45.0]
[1721339451580,0.8106226,158.55,158.49,57.29]
[1721339451772,12.29,158.54,158.49,57.29]
[1721339452275,0.8106226,158.55,158.49,57.29]
[1721339452485,13.1006226,158.55,158.49,57.29]
[1721339455458,13.1006226,158.55,158.45,16.96303179]
[1721339455690,12.29,158.54,158.48,12.29]
[1721339456184,12.29,158.53,158.48,12.29]
[1721339457789,12.29,158.53,158.46,20.0]
[1721339457790,12.29,158.54,158.47,12.29]
[1721339458080,19.4078226,158.55,158.48,45.0]
[1721339458279,13.1006226,158.55,158.48,45.0]
[1721339458580,12.29,158.54,158.48,45.0]
[1721339458983,12.29,158.54,158.48,57.29]
[1721339459577,12.29,158.54,158.48,45.0]